[Event "Live Chess"]
[Site "Chess.com"]
[Date "2024.06.01"]
[Round "-"]
[White "blunderabit"]
[Black "KeithArkell"]
[Result "0-1"]
[WhiteElo "1819"]
[BlackElo "2515"]
[TimeControl "300"]
[EndTime "9:53:52 PDT"]
[Termination "KeithArkell won by resignation"]

1. e4 {[%clk 0:04:56.2]} 1... c6 {[%clk 0:04:58.1]} 2. Nf3 {[%clk 0:04:52.7]}
2... d5 {[%clk 0:04:56.3]} 3. d3 {[%clk 0:04:52.2]} 3... Bg4 {[%clk 0:04:53]} 4.
h3 {[%clk 0:04:50.2]} 4... Bxf3 {[%clk 0:04:50.7]} 5. Qxf3 {[%clk 0:04:49.8]}
5... e6 {[%clk 0:04:50.1]} 6. g3 {[%clk 0:04:48.3]} 6... Nd7 {[%clk 0:04:44.2]}
7. Bg2 {[%clk 0:04:47.5]} 7... Qf6 {[%clk 0:04:43.3]} 8. Qe2 {[%clk 0:04:45.7]}
8... Bc5 {[%clk 0:04:40.4]} 9. O-O {[%clk 0:04:42.2]} 9... Ne7 {[%clk
0:04:35.7]} 10. Kh2 {[%clk 0:04:40.8]} 10... h5 {[%clk 0:04:33.7]} 11. h4 {[%clk
0:04:37]} 11... Ne5 {[%clk 0:04:28]} 12. Bg5 {[%clk 0:04:27.1]} 12... Ng4+
{[%clk 0:04:25.7]} 13. Qxg4 {[%clk 0:04:25.3]} 13... hxg4 {[%clk 0:04:23.4]} 14.
Bxf6 {[%clk 0:04:24]} 14... gxf6 {[%clk 0:04:23.3]} 15. Nd2 {[%clk 0:04:10.4]}
15... f5 {[%clk 0:04:22.4]} 16. f4 {[%clk 0:03:46.3]} 16... gxf3 {[%clk
0:04:16.6]} 17. Rxf3 {[%clk 0:03:40.6]} 17... fxe4 {[%clk 0:04:08.3]} 18. dxe4
{[%clk 0:03:39.4]} 18... Bd6 {[%clk 0:04:05.3]} 19. Raf1 {[%clk 0:03:34.6]}
19... Rxh4+ {[%clk 0:04:02.8]} 20. Kg1 {[%clk 0:03:31.4]} 20... Bc5+ {[%clk
0:04:01.8]} 21. R1f2 {[%clk 0:03:23.4]} 21... Bxf2+ {[%clk 0:04:00.5]} 22. Kxf2
{[%clk 0:03:22.3]} 22... Rh7 {[%clk 0:03:53.1]} 23. exd5 {[%clk 0:03:16.3]}
23... cxd5 {[%clk 0:03:53]} 24. Nb3 {[%clk 0:03:12.6]} 24... O-O-O {[%clk
0:03:51.7]} 25. Nd4 {[%clk 0:03:09.5]} 25... Nc6 {[%clk 0:03:50.6]} 26. Rc3
{[%clk 0:03:02.1]} 26... Kd7 {[%clk 0:03:47.6]} 27. Nxc6 {[%clk 0:02:51.5]}
27... bxc6 {[%clk 0:03:46.2]} 28. Ra3 {[%clk 0:02:46.9]} 28... Ra8 {[%clk
0:03:44.4]} 29. c4 {[%clk 0:02:45.5]} 29... a5 {[%clk 0:03:42]} 30. cxd5 {[%clk
0:02:43.7]} 30... cxd5 {[%clk 0:03:39.5]} 31. b4 {[%clk 0:02:38.9]} 31... a4
{[%clk 0:03:34.9]} 32. Bf1 {[%clk 0:02:37]} 32... Rh2+ {[%clk 0:03:31.3]} 33.
Kg1 {[%clk 0:02:33.9]} 33... Rb2 {[%clk 0:03:29]} 34. b5 {[%clk 0:02:26.3]}
34... Kd6 {[%clk 0:03:25.3]} 0-1

[Event "Live Chess"]
[Site "Chess.com"]
[Date "2024.06.01"]
[Round "-"]
[White "hapehansen"]
[Black "Ginger_GM"]
[Result "0-1"]
[WhiteElo "2245"]
[BlackElo "2680"]
[TimeControl "300"]
[EndTime "9:53:57 PDT"]
[Termination "Ginger_GM won by resignation"]

1. Nf3 {[%clk 0:04:55.7]} 1... f5 {[%clk 0:04:58.8]} 2. c4 {[%clk 0:04:52.5]}
2... d6 {[%clk 0:04:57.6]} 3. d4 {[%clk 0:04:50.7]} 3... Nf6 {[%clk 0:04:56.7]}
4. Nc3 {[%clk 0:04:48.9]} 4... e6 {[%clk 0:04:55.8]} 5. Bg5 {[%clk 0:04:46.8]}
5... Be7 {[%clk 0:04:54.4]} 6. Bxf6 {[%clk 0:04:44.3]} 6... Bxf6 {[%clk
0:04:53.6]} 7. e4 {[%clk 0:04:44]} 7... e5 {[%clk 0:04:52.6]} 8. dxe5 {[%clk
0:04:39.2]} 8... dxe5 {[%clk 0:04:52.5]} 9. Qxd8+ {[%clk 0:04:36.8]} 9... Kxd8
{[%clk 0:04:49.4]} 10. O-O-O+ {[%clk 0:04:34.5]} 10... Ke8 {[%clk 0:04:45.7]}
11. exf5 {[%clk 0:04:26.7]} 11... Bxf5 {[%clk 0:04:43.8]} 12. Bd3 {[%clk
0:04:26.2]} 12... Bxd3 {[%clk 0:04:41.4]} 13. Rxd3 {[%clk 0:04:24.6]} 13... Nd7
{[%clk 0:04:39.2]} 14. Re1 {[%clk 0:04:06]} 14... c6 {[%clk 0:04:28.1]} 15. Ne4
{[%clk 0:04:00.1]} 15... Ke7 {[%clk 0:04:25.3]} 16. Nd6 {[%clk 0:03:55.6]} 16...
Nc5 {[%clk 0:04:20.8]} 17. Rdd1 {[%clk 0:03:45.1]} 17... Rhd8 {[%clk 0:04:12.1]}
18. Nf5+ {[%clk 0:03:33.7]} 18... Ke6 {[%clk 0:04:09.6]} 19. N5d4+ {[%clk
0:03:22.8]} 19... Kf7 {[%clk 0:04:01]} 20. Nf5 {[%clk 0:03:21.7]} 20... Nd3+
{[%clk 0:03:57.1]} 21. Rxd3 {[%clk 0:03:13.7]} 21... Rxd3 {[%clk 0:03:57]} 22.
Nxe5+ {[%clk 0:03:07.4]} 22... Bxe5 {[%clk 0:03:55.4]} 23. Rxe5 {[%clk
0:03:07.2]} 23... Kf6 {[%clk 0:03:54.7]} 24. f4 {[%clk 0:03:05.1]} 24... Rad8
{[%clk 0:03:47.9]} 25. Ne3 {[%clk 0:03:02]} 25... g6 {[%clk 0:03:37.2]} 26. g4
{[%clk 0:02:46.9]} 26... Kf7 {[%clk 0:03:35.9]} 27. h4 {[%clk 0:02:44.3]} 27...
R8d4 {[%clk 0:03:32.2]} 28. f5 {[%clk 0:02:31.3]} 28... Rf4 {[%clk 0:03:26.3]}
29. Kc2 {[%clk 0:02:22.1]} 29... Rxe3 {[%clk 0:03:19.6]} 30. Rxe3 {[%clk
0:02:18.4]} 30... Rxc4+ {[%clk 0:03:18.5]} 31. Kd3 {[%clk 0:02:15.1]} 31... Rxg4
{[%clk 0:03:18.4]} 32. fxg6+ {[%clk 0:02:11.7]} 32... hxg6 {[%clk 0:03:17.1]}
33. Rh3 {[%clk 0:02:10.5]} 33... Ra4 {[%clk 0:03:13.4]} 34. a3 {[%clk
0:02:08.8]} 34... Ra5 {[%clk 0:03:12.5]} 35. Rf3+ {[%clk 0:02:01.9]} 35... Ke6
{[%clk 0:03:11.4]} 36. Rf4 {[%clk 0:02:00.5]} 36... Rf5 {[%clk 0:03:06.6]} 37.
Rb4 {[%clk 0:01:55.3]} 37... b5 {[%clk 0:03:05]} 38. Rg4 {[%clk 0:01:54.1]}
38... Kf6 {[%clk 0:03:02.9]} 39. b4 {[%clk 0:01:48.1]} 39... Rf1 {[%clk
0:02:57.1]} 40. Kd4 {[%clk 0:01:43.6]} 40... Rc1 {[%clk 0:02:54.4]} 41. Rf4+
{[%clk 0:01:31.7]} 41... Ke6 {[%clk 0:02:52.9]} 42. Rg4 {[%clk 0:01:30.1]} 42...
Rc4+ {[%clk 0:02:51.7]} 0-1

[Event "Live Chess"]
[Site "Chess.com"]
[Date "2024.06.01"]
[Round "-"]
[White "Bazzza132"]
[Black "Brooms1989"]
[Result "0-1"]
[WhiteElo "1673"]
[BlackElo "1070"]
[TimeControl "300"]
[EndTime "9:53:59 PDT"]
[Termination "Brooms1989 won by checkmate"]

1. e4 {[%clk 0:04:58.6]} 1... e5 {[%clk 0:04:55.5]} 2. Nf3 {[%clk 0:04:58.2]}
2... Nc6 {[%clk 0:04:52.8]} 3. Bb5 {[%clk 0:04:57]} 3... a6 {[%clk 0:04:51.4]}
4. Ba4 {[%clk 0:04:55.8]} 4... Nf6 {[%clk 0:04:50.2]} 5. O-O {[%clk 0:04:54.9]}
5... Nxe4 {[%clk 0:04:49.1]} 6. d4 {[%clk 0:04:53.1]} 6... b5 {[%clk 0:04:41]}
7. Bb3 {[%clk 0:04:49.2]} 7... d5 {[%clk 0:04:38.4]} 8. Re1 {[%clk 0:04:46.6]}
8... Be6 {[%clk 0:04:23.6]} 9. Nxe5 {[%clk 0:04:40.7]} 9... Nxe5 {[%clk
0:04:19.4]} 10. dxe5 {[%clk 0:04:38.4]} 10... c6 {[%clk 0:04:18.9]} 11. f4
{[%clk 0:04:30.6]} 11... Bc5+ {[%clk 0:03:58]} 12. Kf1 {[%clk 0:04:25.4]} 12...
Qh4 {[%clk 0:03:29.9]} 13. Qf3 {[%clk 0:04:12.9]} 13... Qxh2 {[%clk 0:03:13]}
14. Rxe4 {[%clk 0:04:04.7]} 14... dxe4 {[%clk 0:02:53.8]} 15. Qxe4 {[%clk
0:04:03.6]} 15... Qg1+ {[%clk 0:02:49.5]} 16. Ke2 {[%clk 0:04:02.1]} 16... Bg4+
{[%clk 0:02:44.1]} 17. Kd3 {[%clk 0:03:56.9]} 17... Qf1+ {[%clk 0:02:26.2]} 18.
Kd2 {[%clk 0:03:36.3]} 18... O-O-O+ {[%clk 0:02:19.4]} 19. Kc3 {[%clk
0:03:29.6]} 19... b4+ {[%clk 0:02:17.2]} 20. Qxb4 {[%clk 0:03:27.5]} 20... Bxb4+
{[%clk 0:02:16.3]} 21. Kxb4 {[%clk 0:03:26.7]} 21... Qb5+ {[%clk 0:02:13.8]} 22.
Ka3 {[%clk 0:03:25.6]} 22... Qc5+ {[%clk 0:02:05.9]} 23. Ka4 {[%clk 0:03:24.1]}
23... Rd4+ {[%clk 0:02:03]} 24. c4 {[%clk 0:03:22.8]} 24... Kd7 {[%clk
0:01:45.9]} 25. Be3 {[%clk 0:03:19.3]} 25... Rb8 {[%clk 0:01:41.9]} 26. a3
{[%clk 0:03:09.4]} 26... Rxb3 {[%clk 0:01:19]} 27. Bxd4 {[%clk 0:02:58.2]} 27...
Qxd4 {[%clk 0:01:17.9]} 28. Kxb3 {[%clk 0:02:55.6]} 28... Qxf4 {[%clk
0:01:15.4]} 29. Nc3 {[%clk 0:02:53.5]} 29... Be6 {[%clk 0:01:07.3]} 30. Rd1+
{[%clk 0:02:51.3]} 30... Ke8 {[%clk 0:01:04.3]} 31. Kc2 {[%clk 0:02:41.9]} 31...
Qxe5 {[%clk 0:00:56.2]} 32. b3 {[%clk 0:02:36.8]} 32... Qf5+ {[%clk 0:00:49.3]}
33. Kb2 {[%clk 0:02:35.5]} 33... Qf2+ {[%clk 0:00:47.2]} 34. Kc1 {[%clk
0:02:32.3]} 34... Bg4 {[%clk 0:00:43.8]} 35. Rd2 {[%clk 0:02:30.5]} 35... Qe1+
{[%clk 0:00:39.3]} 36. Kc2 {[%clk 0:02:29.8]} 36... Bf5+ {[%clk 0:00:36.3]} 37.
Ne4 {[%clk 0:02:23.5]} 37... Bxe4+ {[%clk 0:00:34.1]} 38. Kc3 {[%clk 0:02:23]}
38... Qxd2+ {[%clk 0:00:31.4]} 39. Kxd2 {[%clk 0:02:21.7]} 39... Bxg2 {[%clk
0:00:31.3]} 40. Ke3 {[%clk 0:02:20.8]} 40... Ke7 {[%clk 0:00:30.5]} 41. Kf4
{[%clk 0:02:19.9]} 41... Kf6 {[%clk 0:00:29.5]} 42. b4 {[%clk 0:02:18.4]} 42...
h5 {[%clk 0:00:27.9]} 43. a4 {[%clk 0:02:17.5]} 43... h4 {[%clk 0:00:26.9]} 44.
Kg4 {[%clk 0:02:15.3]} 44... h3 {[%clk 0:00:25.8]} 45. Kg3 {[%clk 0:02:14.8]}
45... Ke5 {[%clk 0:00:23.9]} 46. b5 {[%clk 0:02:13.2]} 46... cxb5 {[%clk
0:00:20.5]} 47. cxb5 {[%clk 0:02:11]} 47... axb5 {[%clk 0:00:18]} 48. axb5
{[%clk 0:02:10.4]} 48... Kd6 {[%clk 0:00:17.7]} 49. b6 {[%clk 0:02:09.6]} 49...
Kc6 {[%clk 0:00:17]} 50. b7 {[%clk 0:02:09.5]} 50... Kxb7 {[%clk 0:00:16.2]} 51.
Kh2 {[%clk 0:02:09.2]} 51... Kc6 {[%clk 0:00:16.1]} 52. Kg1 {[%clk 0:02:08.5]}
52... Kd5 {[%clk 0:00:16]} 53. Kh2 {[%clk 0:02:08.4]} 53... Ke4 {[%clk
0:00:15.5]} 54. Kg1 {[%clk 0:02:08.3]} 54... f5 {[%clk 0:00:14.6]} 55. Kh2
{[%clk 0:02:07.9]} 55... f4 {[%clk 0:00:14.5]} 56. Kg1 {[%clk 0:02:06.5]} 56...
Ke3 {[%clk 0:00:14.4]} 57. Kh2 {[%clk 0:02:05.6]} 57... Ke2 {[%clk 0:00:14]} 58.
Kg1 {[%clk 0:02:05]} 58... f3 {[%clk 0:00:13.4]} 59. Kh2 {[%clk 0:02:04.3]}
59... f2 {[%clk 0:00:13]} 60. Kg3 {[%clk 0:02:03.6]} 60... f1=Q {[%clk
0:00:11.6]} 61. Kh4 {[%clk 0:02:03.5]} 61... Qf4+ {[%clk 0:00:10.5]} 62. Kh5
{[%clk 0:02:02.9]} 62... Bf3+ {[%clk 0:00:09.5]} 63. Kg6 {[%clk 0:02:01.9]}
63... Ke3 {[%clk 0:00:09.4]} 64. Kxg7 {[%clk 0:02:00.7]} 64... Qg4+ {[%clk
0:00:08.4]} 65. Kf8 {[%clk 0:02:00.3]} 65... Qf5+ {[%clk 0:00:07.8]} 66. Ke7
{[%clk 0:02:00.2]} 66... Qg6 {[%clk 0:00:06.8]} 67. Kd7 {[%clk 0:01:59.3]} 67...
h2 {[%clk 0:00:06.7]} 68. Kc7 {[%clk 0:01:58.9]} 68... h1=Q {[%clk 0:00:06.2]}
69. Kd8 {[%clk 0:01:58.5]} 69... Qhh7 {[%clk 0:00:05.8]} 70. Kc8 {[%clk
0:01:57.7]} 70... Qgg8# {[%clk 0:00:05.7]} 0-1

[Event "Live Chess"]
[Site "Chess.com"]
[Date "2024.06.01"]
[Round "-"]
[White "MagnersCarlsberg2870"]
[Black "TheRedDrag"]
[Result "1/2-1/2"]
[WhiteElo "1887"]
[BlackElo "2173"]
[TimeControl "300"]
[EndTime "9:54:05 PDT"]
[Termination "Game drawn by repetition"]

1. d4 {[%clk 0:04:57.2]} 1... Nf6 {[%clk 0:04:58.4]} 2. Nf3 {[%clk 0:04:56.1]}
2... g6 {[%clk 0:04:57.7]} 3. Nc3 {[%clk 0:04:54]} 3... Bg7 {[%clk 0:04:57.2]}
4. e4 {[%clk 0:04:53.3]} 4... d6 {[%clk 0:04:56.4]} 5. h3 {[%clk 0:04:52.5]}
5... O-O {[%clk 0:04:55.7]} 6. Bc4 {[%clk 0:04:51.7]} 6... Nbd7 {[%clk
0:04:54.9]} 7. e5 {[%clk 0:04:50.5]} 7... Ne8 {[%clk 0:04:45.7]} 8. e6 {[%clk
0:04:48]} 8... fxe6 {[%clk 0:04:44.8]} 9. Bxe6+ {[%clk 0:04:46]} 9... Kh8 {[%clk
0:04:44.7]} 10. Ng5 {[%clk 0:04:44.4]} 10... Ndf6 {[%clk 0:04:30.1]} 11. Nf7+
{[%clk 0:04:42.6]} 11... Rxf7 {[%clk 0:04:29.8]} 12. Bxf7 {[%clk 0:04:41.9]}
12... e5 {[%clk 0:04:28.6]} 13. dxe5 {[%clk 0:04:39.6]} 13... Qe7 {[%clk
0:04:27.9]} 14. Bb3 {[%clk 0:04:33.8]} 14... dxe5 {[%clk 0:04:26]} 15. O-O
{[%clk 0:04:31.7]} 15... Bf5 {[%clk 0:04:24.3]} 16. Bg5 {[%clk 0:04:30.4]} 16...
c6 {[%clk 0:04:21.4]} 17. Qe2 {[%clk 0:04:20]} 17... h6 {[%clk 0:04:17.5]} 18.
Bh4 {[%clk 0:04:15.9]} 18... Rd8 {[%clk 0:04:11.9]} 19. Rfe1 {[%clk 0:04:12.1]}
19... e4 {[%clk 0:04:03.3]} 20. Bxf6 {[%clk 0:04:01.8]} 20... Nxf6 {[%clk
0:03:57.7]} 21. f3 {[%clk 0:04:00.7]} 21... Qc5+ {[%clk 0:03:55.9]} 22. Kh1
{[%clk 0:03:59]} 22... exf3 {[%clk 0:03:52.3]} 23. Qxf3 {[%clk 0:03:56.7]} 23...
b5 {[%clk 0:03:45.7]} 24. Rad1 {[%clk 0:03:51.4]} 24... Rf8 {[%clk 0:03:43]} 25.
a3 {[%clk 0:03:26.3]} 25... a5 {[%clk 0:03:37.8]} 26. Kh2 {[%clk 0:03:17.2]}
26... a4 {[%clk 0:03:34.5]} 27. Be6 {[%clk 0:03:13.6]} 27... Bxc2 {[%clk
0:03:30.4]} 28. Qe2 {[%clk 0:03:01]} 28... Bxd1 {[%clk 0:03:23.7]} 29. Qxd1
{[%clk 0:02:53.3]} 29... Nh5 {[%clk 0:03:11.9]} 30. Ne4 {[%clk 0:02:44]} 30...
Qe5+ {[%clk 0:03:07.1]} 31. Kh1 {[%clk 0:02:41.6]} 31... Ng3+ {[%clk 0:03:02]}
32. Nxg3 {[%clk 0:02:38.6]} 32... Qxg3 {[%clk 0:03:01.9]} 33. Bg4 {[%clk
0:02:29]} 33... Rf2 {[%clk 0:02:45.7]} 34. Bf3 {[%clk 0:02:27.3]} 34... Rxb2
{[%clk 0:02:37.7]} 35. Qc1 {[%clk 0:02:10.7]} 35... Rc2 {[%clk 0:02:26.2]} 36.
Re8+ {[%clk 0:02:07.4]} 36... Kh7 {[%clk 0:02:25.6]} 37. Qxc2 {[%clk 0:02:06.6]}
37... Be5 {[%clk 0:02:17.2]} 38. Rxe5 {[%clk 0:02:01.1]} 38... Qxe5 {[%clk
0:02:17.1]} 39. Qxc6 {[%clk 0:02:00.1]} 39... Qe1+ {[%clk 0:02:13]} 40. Kh2
{[%clk 0:01:57.3]} 40... Qe5+ {[%clk 0:02:12.2]} 41. g3 {[%clk 0:01:53.6]} 41...
Qb2+ {[%clk 0:02:11]} 42. Bg2 {[%clk 0:01:51.2]} 42... Qxa3 {[%clk 0:02:07.5]}
43. Qxb5 {[%clk 0:01:50.3]} 43... Qa2 {[%clk 0:01:58.4]} 44. Qd7+ {[%clk
0:01:48.6]} 44... Kg8 {[%clk 0:01:55.9]} 45. Qe8+ {[%clk 0:01:47.4]} 45... Kg7
{[%clk 0:01:54.5]} 46. h4 {[%clk 0:01:43.7]} 46... a3 {[%clk 0:01:46.1]} 47. Kh3
{[%clk 0:01:40.4]} 47... Qf2 {[%clk 0:01:33.2]} 48. Be4 {[%clk 0:01:33.1]} 48...
Qf1+ {[%clk 0:01:29.7]} 49. Bg2 {[%clk 0:01:29.2]} 49... Qf5+ {[%clk 0:01:28.8]}
50. Kh2 {[%clk 0:01:24.9]} 50... a2 {[%clk 0:01:26.4]} 51. Qe7+ {[%clk
0:01:22.2]} 51... Kg8 {[%clk 0:01:25.2]} 52. Qd8+ {[%clk 0:01:15.7]} 52... Kg7
{[%clk 0:01:18]} 53. Qe7+ {[%clk 0:01:13.2]} 53... Kg8 {[%clk 0:01:05.2]} 54.
Qd8+ {[%clk 0:01:10.3]} 54... Kg7 {[%clk 0:01:03.7]} 55. Qe7+ {[%clk 0:01:09.3]}
1/2-1/2

[Event "Live Chess"]
[Site "Chess.com"]
[Date "2024.06.01"]
[Round "-"]
[White "PedroCI"]
[Black "bill77678"]
[Result "0-1"]
[WhiteElo "1265"]
[BlackElo "1801"]
[TimeControl "300"]
[EndTime "9:54:13 PDT"]
[Termination "bill77678 won by checkmate"]

1. e4 {[%clk 0:04:56.7]} 1... c6 {[%clk 0:04:59.1]} 2. Nc3 {[%clk 0:04:54.4]}
2... d5 {[%clk 0:04:58.4]} 3. d4 {[%clk 0:04:53.1]} 3... dxe4 {[%clk 0:04:57.5]}
4. Nxe4 {[%clk 0:04:53]} 4... Nf6 {[%clk 0:04:56.9]} 5. Nxf6+ {[%clk 0:04:45.1]}
5... exf6 {[%clk 0:04:56.8]} 6. Nf3 {[%clk 0:04:37.2]} 6... Bd6 {[%clk
0:04:56.1]} 7. Bd3 {[%clk 0:04:33.1]} 7... O-O {[%clk 0:04:55]} 8. O-O {[%clk
0:04:30.2]} 8... Bg4 {[%clk 0:04:53.6]} 9. h3 {[%clk 0:04:23]} 9... Bh5 {[%clk
0:04:52.3]} 10. Be4 {[%clk 0:04:20]} 10... Re8 {[%clk 0:04:47]} 11. Qd3 {[%clk
0:04:17.2]} 11... Bg6 {[%clk 0:04:38.3]} 12. Bxg6 {[%clk 0:04:13.9]} 12... hxg6
{[%clk 0:04:38.2]} 13. Bd2 {[%clk 0:04:05]} 13... Nd7 {[%clk 0:04:37.2]} 14.
Rfe1 {[%clk 0:04:02.4]} 14... Qc7 {[%clk 0:04:35.6]} 15. g3 {[%clk 0:03:58]}
15... Bxg3 {[%clk 0:04:19.5]} 16. fxg3 {[%clk 0:03:55.3]} 16... Qxg3+ {[%clk
0:04:19.4]} 17. Kh1 {[%clk 0:03:42.3]} 17... Qxh3+ {[%clk 0:04:16.9]} 18. Kg1
{[%clk 0:03:41]} 18... Qg3+ {[%clk 0:04:01.7]} 19. Kf1 {[%clk 0:03:24.4]} 19...
f5 {[%clk 0:04:00.9]} 20. Ne5 {[%clk 0:02:52.6]} 20... Qxd3+ {[%clk 0:03:44.5]}
21. Nxd3 {[%clk 0:02:49.7]} 21... Nf6 {[%clk 0:03:42.8]} 22. Rxe8+ {[%clk
0:02:45.6]} 22... Rxe8 {[%clk 0:03:42.7]} 23. Re1 {[%clk 0:02:43.7]} 23... Ne4
{[%clk 0:03:41.7]} 24. Bf4 {[%clk 0:02:35.9]} 24... g5 {[%clk 0:03:37.6]} 25.
Bh2 {[%clk 0:02:27.3]} 25... f6 {[%clk 0:03:33.8]} 26. Kg2 {[%clk 0:02:24.5]}
26... Kf7 {[%clk 0:03:29.5]} 27. Nb4 {[%clk 0:02:08.1]} 27... Rd8 {[%clk
0:03:19.3]} 28. c3 {[%clk 0:01:52]} 28... Re8 {[%clk 0:03:12.7]} 29. Nd3 {[%clk
0:01:43.5]} 29... Kg6 {[%clk 0:03:05.9]} 30. Nc5 {[%clk 0:01:41.7]} 30... b6
{[%clk 0:02:49.4]} 31. Nxe4 {[%clk 0:01:34.7]} 31... fxe4 {[%clk 0:02:49.3]} 32.
Bd6 {[%clk 0:01:27.4]} 32... f5 {[%clk 0:02:44]} 33. c4 {[%clk 0:01:24.8]} 33...
f4 {[%clk 0:02:39.7]} 34. b4 {[%clk 0:01:17.9]} 34... Kf5 {[%clk 0:02:34.8]} 35.
b5 {[%clk 0:01:16.7]} 35... cxb5 {[%clk 0:02:30.1]} 36. c5 {[%clk 0:01:12.3]}
36... bxc5 {[%clk 0:02:28.4]} 37. dxc5 {[%clk 0:01:05.7]} 37... g4 {[%clk
0:02:25.5]} 38. c6 {[%clk 0:01:04.2]} 38... e3 {[%clk 0:02:20.4]} 39. c7 {[%clk
0:01:03]} 39... f3+ {[%clk 0:02:17.7]} 40. Kg3 {[%clk 0:00:59.2]} 40... e2
{[%clk 0:02:06.4]} 41. Rc1 {[%clk 0:00:49.2]} 41... Rc8 {[%clk 0:01:58.8]} 42.
Bb4 {[%clk 0:00:36.5]} 42... Ke6 {[%clk 0:01:53.1]} 43. Kxg4 {[%clk 0:00:34.8]}
43... f2 {[%clk 0:01:51.7]} 44. Bc3 {[%clk 0:00:19]} 44... f1=Q {[%clk
0:01:49.7]} 45. Rxf1 {[%clk 0:00:17.2]} 45... exf1=Q {[%clk 0:01:49.6]} 46. Bxg7
{[%clk 0:00:16]} 46... Rxc7 {[%clk 0:01:48.4]} 47. Bd4 {[%clk 0:00:13.3]} 47...
Rf7 {[%clk 0:01:45]} 48. a4 {[%clk 0:00:08]} 48... Qg2+ {[%clk 0:01:43.4]} 49.
Kh4 {[%clk 0:00:04.5]} 49... Rh7# {[%clk 0:01:42.7]} 0-1

[Event "Live Chess"]
[Site "Chess.com"]
[Date "2024.06.01"]
[Round "-"]
[White "Keithdfg"]
[Black "SirGerhard"]
[Result "0-1"]
[WhiteElo "1754"]
[BlackElo "2764"]
[TimeControl "300"]
[EndTime "9:54:35 PDT"]
[Termination "SirGerhard won by resignation"]

1. Nf3 {[%clk 0:04:57.6]} 1... d5 {[%clk 0:04:59]} 2. g3 {[%clk 0:04:54.8]} 2...
c6 {[%clk 0:04:58.1]} 3. Bg2 {[%clk 0:04:54.1]} 3... Nf6 {[%clk 0:04:57.6]} 4.
O-O {[%clk 0:04:53.7]} 4... Bf5 {[%clk 0:04:56.9]} 5. d4 {[%clk 0:04:52.7]} 5...
h6 {[%clk 0:04:56.4]} 6. Nbd2 {[%clk 0:04:51.9]} 6... Nbd7 {[%clk 0:04:55.6]} 7.
c4 {[%clk 0:04:51.1]} 7... e6 {[%clk 0:04:54]} 8. b3 {[%clk 0:04:50.2]} 8... Bd6
{[%clk 0:04:51.8]} 9. Bb2 {[%clk 0:04:49.3]} 9... Qe7 {[%clk 0:04:51.1]} 10. a3
{[%clk 0:04:44.1]} 10... O-O {[%clk 0:04:49.9]} 11. Re1 {[%clk 0:04:38.7]} 11...
Ne4 {[%clk 0:04:48.6]} 12. c5 {[%clk 0:04:32]} 12... Bc7 {[%clk 0:04:47.1]} 13.
b4 {[%clk 0:04:31]} 13... f6 {[%clk 0:04:37.8]} 14. Nb3 {[%clk 0:04:29.6]} 14...
e5 {[%clk 0:04:36]} 15. Nfd2 {[%clk 0:04:25.4]} 15... Nxd2 {[%clk 0:04:32.7]}
16. Qxd2 {[%clk 0:04:23.6]} 16... e4 {[%clk 0:04:32.2]} 17. e3 {[%clk 0:04:22]}
17... Qe6 {[%clk 0:04:30.1]} 18. a4 {[%clk 0:04:19.9]} 18... Bh3 {[%clk
0:04:29.3]} 19. Bh1 {[%clk 0:04:15.6]} 19... f5 {[%clk 0:04:26.2]} 20. b5 {[%clk
0:04:12.2]} 20... g5 {[%clk 0:04:25.5]} 21. Na5 {[%clk 0:04:09.8]} 21... Rab8
{[%clk 0:04:12.7]} 22. Bc3 {[%clk 0:04:04.6]} 22... f4 {[%clk 0:04:11]} 23. Rab1
{[%clk 0:03:58.4]} 23... Nf6 {[%clk 0:03:53.9]} 24. bxc6 {[%clk 0:03:40.2]}
24... bxc6 {[%clk 0:03:52.4]} 25. Nb7 {[%clk 0:03:38.8]} 25... fxe3 {[%clk
0:03:46.9]} 26. fxe3 {[%clk 0:03:36.2]} 26... Ng4 {[%clk 0:03:46.3]} 27. Nd6
{[%clk 0:03:31.2]} 27... Rxb1 {[%clk 0:03:30.9]} 28. Rxb1 {[%clk 0:03:29.4]}
28... Qf6 {[%clk 0:03:30.4]} 29. Bg2 {[%clk 0:03:15]} 29... Bxg2 {[%clk
0:03:29.1]} 30. Kxg2 {[%clk 0:03:13.6]} 30... Qf3+ {[%clk 0:03:28.1]} 0-1

[Event "Live Chess"]
[Site "Chess.com"]
[Date "2024.06.01"]
[Round "-"]
[White "OliWally08"]
[Black "LaupMiths"]
[Result "0-1"]
[WhiteElo "1258"]
[BlackElo "1801"]
[TimeControl "300"]
[EndTime "9:54:35 PDT"]
[Termination "LaupMiths won by resignation"]

1. e4 {[%clk 0:04:59.2]} 1... e6 {[%clk 0:04:51.8]} 2. Nc3 {[%clk 0:04:55.8]}
2... d5 {[%clk 0:04:50.5]} 3. e5 {[%clk 0:04:50.9]} 3... c5 {[%clk 0:04:45]} 4.
d4 {[%clk 0:04:42.8]} 4... cxd4 {[%clk 0:04:43.2]} 5. Qxd4 {[%clk 0:04:42.1]}
5... Nc6 {[%clk 0:04:41.3]} 6. Bb5 {[%clk 0:04:35.8]} 6... Bd7 {[%clk
0:04:38.7]} 7. Nf3 {[%clk 0:04:29.9]} 7... Nxd4 {[%clk 0:04:36.8]} 8. Bxd7+
{[%clk 0:04:23]} 8... Qxd7 {[%clk 0:04:34]} 9. Nxd4 {[%clk 0:04:22.9]} 9... a6
{[%clk 0:04:31.2]} 10. O-O {[%clk 0:04:21.2]} 10... Ne7 {[%clk 0:04:26.8]} 11.
Re1 {[%clk 0:04:19.6]} 11... Nc6 {[%clk 0:04:25]} 12. Be3 {[%clk 0:04:17.6]}
12... Nxd4 {[%clk 0:04:22]} 13. Bxd4 {[%clk 0:04:17.5]} 13... Rc8 {[%clk
0:04:20.4]} 14. Rad1 {[%clk 0:04:14.8]} 14... Bc5 {[%clk 0:04:18.3]} 0-1

[Event "Live Chess"]
[Site "Chess.com"]
[Date "2024.06.01"]
[Round "-"]
[White "Velocity"]
[Black "Grace6363"]
[Result "1-0"]
[WhiteElo "1719"]
[BlackElo "1146"]
[TimeControl "300"]
[EndTime "9:54:57 PDT"]
[Termination "Velocity won by resignation"]

1. e4 {[%clk 0:04:59.6]} 1... c5 {[%clk 0:04:58.5]} 2. Nf3 {[%clk 0:04:58.9]}
2... Nc6 {[%clk 0:04:56.7]} 3. d4 {[%clk 0:04:58.2]} 3... cxd4 {[%clk
0:04:55.6]} 4. Nxd4 {[%clk 0:04:58.1]} 4... g6 {[%clk 0:04:55.2]} 5. c4 {[%clk
0:04:57]} 5... Bg7 {[%clk 0:04:54.1]} 6. Be3 {[%clk 0:04:56.4]} 6... Nf6 {[%clk
0:04:53.4]} 7. Nc3 {[%clk 0:04:55.8]} 7... e6 {[%clk 0:04:51.6]} 8. f3 {[%clk
0:04:54.1]} 8... O-O {[%clk 0:04:49.3]} 9. Be2 {[%clk 0:04:53]} 9... a6 {[%clk
0:04:48.4]} 10. O-O {[%clk 0:04:51.9]} 10... Nxd4 {[%clk 0:04:45.9]} 11. Bxd4
{[%clk 0:04:50.7]} 11... b6 {[%clk 0:04:39.8]} 12. Qd2 {[%clk 0:04:47.1]} 12...
Bb7 {[%clk 0:04:38.5]} 13. Rfd1 {[%clk 0:04:45.6]} 13... d6 {[%clk 0:04:34.8]}
14. Bxf6 {[%clk 0:04:39.9]} 14... Bxf6 {[%clk 0:04:31.2]} 15. Qxd6 {[%clk
0:04:39.1]} 15... Qxd6 {[%clk 0:04:20.6]} 16. Rxd6 {[%clk 0:04:39]} 16... Bxc3
{[%clk 0:04:11.1]} 17. bxc3 {[%clk 0:04:37.3]} 17... b5 {[%clk 0:04:06.9]} 18.
cxb5 {[%clk 0:04:35.1]} 18... axb5 {[%clk 0:04:05.2]} 19. Bxb5 {[%clk
0:04:34.2]} 19... Ra3 {[%clk 0:03:52.1]} 20. Rd7 {[%clk 0:04:10.9]} 20... Rb8
{[%clk 0:03:39.9]} 21. Rc7 {[%clk 0:04:06.5]} 21... Ra5 {[%clk 0:03:30.5]} 22.
Be8 {[%clk 0:03:48.6]} 22... Ba6 {[%clk 0:03:17.8]} 23. Bxf7+ {[%clk 0:03:45.7]}
23... Kf8 {[%clk 0:03:13.6]} 24. Bxe6 {[%clk 0:03:43.3]} 24... Rab5 {[%clk
0:03:03.7]} 25. Rf7+ {[%clk 0:03:29.5]} 25... Ke8 {[%clk 0:02:59.7]} 26. Rxh7
{[%clk 0:03:20.6]} 26... Rc5 {[%clk 0:02:34.6]} 27. Rh8+ {[%clk 0:03:17.8]}
27... Ke7 {[%clk 0:02:28.3]} 28. Rxb8 {[%clk 0:03:17.7]} 28... Kxe6 {[%clk
0:02:27.6]} 29. Rb6+ {[%clk 0:03:16.7]} 1-0